bitfinex-derivatives/quotes_ETHF0:USTF0_20250602
["timestamp","ask_amount","ask_price","bid_price","bid_amount"]
[1748892889753,29.38894,2533.9,2533.7,1.45749]
[1748892890046,28.6,2533.9,2533.7,1.45749]
[1748892890250,28.6,2533.9,2533.7,0.6685]
[1748892890451,29.38894,2533.9,2533.7,1.45748]
[1748892891249,28.6,2533.9,2533.8,0.78896]
[1748892891455,29.38893,2533.9,2533.8,0.6784]
[1748892891958,5.54662667,2534.3,2534.1,0.78885]
[1748892892253,0.6224,2534.4,2534.0,3.2078]
[1748892892452,0.00590726,2534.5,2534.4,0.78878]
[1748892892648,1.24710726,2534.5,2534.4,0.78878]
[1748892892953,29.84710726,2534.5,2534.4,0.78878]
[1748892893148,29.84710726,2534.5,2534.3,0.78879]
[1748892893347,0.78878,2534.4,2534.2,0.78882]
[1748892893554,2.02998,2534.4,2534.2,0.78882]
[1748892894548,0.78883,2534.3,2534.1,0.6822]
[1748892894750,0.78884,2534.2,2534.1,0.6822]
[1748892895351,2.03001,2534.3,2534.1,0.6822]
[1748892895546,1.2412,2534.3,2534.1,0.6822]
[1748892895857,0.7889,2534.1,2533.9,3.908]
[1748892896050,2.0132,2534.0,2533.9,3.908]
[1748892896250,2.8021,2534.0,2533.9,3.908]
[1748892896445,2.0132,2534.0,2533.9,4.69693]
[1748892896851,2.8021,2534.0,2533.9,3.908]
[1748892898154,2.0132,2534.0,2533.9,4.69693]
[1748892898755,2.8021,2534.0,2533.9,4.69693]
[1748892899055,2.0132,2534.0,2533.9,4.69693]
[1748892900050,2.8021,2534.0,2533.9,3.908]
[1748892900253,2.0132,2534.0,2533.9,4.69693]
[1748892900446,0.78882,2534.3,2533.9,4.69693]
[1748892900653,2.77802,2534.3,2534.0,3.2078]
[1748892900854,0.78884,2534.2,2534.1,0.78885]
[1748892901160,4.5197,2534.2,2533.1,3.2078]
[1748892901355,4.5197,2534.2,2533.1,0.6196]
[1748892901356,3.2078,2533.3,2533.1,0.6196]
[1748892901660,3.99694,2533.3,2533.1,1.40876]
[1748892901958,0.78915,2533.2,2533.1,1.40878]
[1748892902157,1.3167,2533.2,2533.1,1.40878]
[1748892903847,3.2078,2533.3,2533.2,0.78915]
[1748892904052,3.39031041,2533.3,2533.2,0.78915]
[1748892904357,3.2078,2533.3,2533.2,0.78915]
[1748892904856,3.2078,2533.7,2533.6,0.78902]
[1748892905248,3.853,2534.0,2533.8,0.78896]
[1748892905454,3.99673,2533.9,2533.7,0.78897]
[1748892905655,4.5519,2533.9,2533.7,0.78897]
[1748892905856,1.3441,2533.8,2533.7,0.78897]
[1748892906255,0.6452,2534.0,2533.6,2.65597]
[1748892906459,2.33533331,2534.3,2534.2,0.78884]
[1748892906650,0.00590726,2534.5,2534.1,3.909]
[1748892906855,1.35000726,2534.5,2534.4,0.78878]
[1748892907060,1.35000726,2534.5,2534.2,2.70882]
[1748892907261,3.2078,2534.3,2534.2,5.33292]
[1748892909562,1.35000726,2534.5,2534.4,0.78878]
[1748892909762,4.55780726,2534.5,2534.4,0.78878]
[1748892911664,3.21370726,2534.5,2534.4,0.78878]
[1748892912865,0.00590726,2534.5,2534.4,0.78878]
[1748892915159,0.18795241,2534.5,2534.4,0.78878]
[1748892915365,0.00590726,2534.5,2534.4,0.78878]
[1748892915569,0.00590726,2534.5,2534.4,5.78878]
[1748892917968,0.00590726,2534.5,2534.4,8.99658]
[1748892918666,0.19117814,2535.2,2535.1,0.78856]
[1748892918854,3.39897814,2535.2,2535.1,0.78856]
[1748892919569,0.19117814,2535.2,2535.1,0.78856]
[1748892919755,4.66757814,2535.2,2535.1,0.78856]
[1748892919960,1.45977814,2535.2,2535.1,0.78856]
[1748892920154,0.37182802,2535.2,2535.1,0.78856]
[1748892920455,3.39897814,2535.2,2535.1,0.78856]
[1748892920662,0.19117814,2535.2,2535.1,0.78856]
[1748892921166,0.37183018,2535.2,2535.1,0.78856]
[1748892921361,0.19117814,2535.2,2535.1,0.78856]
[1748892921867,1.45977814,2535.2,2535.1,4.71856]
[1748892922065,0.19117814,2535.2,2535.1,4.71856]
[1748892922461,0.37173008,2535.2,2535.1,4.71856]
[1748892922657,0.37173008,2535.2,2535.1,6.00236]
[1748892923366,0.37173008,2535.2,2535.1,4.71856]
[1748892923563,1.73453008,2535.2,2535.1,4.71856]
[1748892924467,0.37173008,2535.2,2535.1,4.71856]
[1748892924763,0.55228065,2535.2,2535.1,4.71856]
[1748892924968,0.37173008,2535.2,2535.1,4.71856]
[1748892925369,0.7328225,2535.2,2535.1,4.71856]
[1748892925666,0.5522762,2535.2,2535.1,4.71856]
[1748892926259,0.5522762,2535.2,2535.1,0.78856]
[1748892926467,1.8064762,2535.2,2534.9,0.79452914]
[1748892926663,2.5950262,2535.2,2534.9,0.79452914]
[1748892926967,0.78858,2535.1,2534.9,0.79453914]
[1748892927168,4.462,2535.0,2534.9,0.79453914]
[1748892927669,1.2542,2535.0,2534.9,0.79453914]
[1748892929369,1.43476201,2535.0,2534.9,0.79453914]
[1748892929569,1.2542,2535.0,2534.9,0.79453914]
[1748892929970,1.3408262,2535.2,2535.1,0.78856]
[1748892929971,0.5522762,2535.2,2535.1,0.78856]
[1748892930469,5.0270762,2535.2,2535.1,0.78856]
[1748892930667,1.8192762,2535.2,2535.1,0.78856]
[1748892930862,5.0270762,2535.2,2535.1,0.78856]
[1748892931061,1.8192762,2535.2,2535.1,0.78856]
[1748892931264,5.0270762,2535.2,2535.1,0.78856]
[1748892931464,5.20764427,2535.2,2535.1,0.78856]
[1748892931769,5.0270762,2535.2,2535.1,0.78856]
[1748892933283,5.0270762,2535.2,2534.9,0.00591914]
[1748892933573,0.78859,2535.0,2534.9,0.00591914]
[1748892933766,3.12392331,2535.0,2534.9,0.00591914]
[1748892933966,2.03029,2535.0,2534.9,0.00591914]
[1748892934379,1.2417,2535.0,2534.9,0.00591914]
[1748892934875,1.2417,2535.0,2534.9,0.79453914]
[1748892935264,1.42221829,2535.0,2534.9,0.79453914]
[1748892935472,1.2417,2535.0,2534.9,0.79453914]
[1748892935674,4.35653298,2535.0,2534.9,0.79453914]
[1748892935870,3.58579603,2535.0,2534.9,0.00591914]
[1748892936070,4.37438603,2535.0,2534.9,0.00591914]
[1748892936884,2.03029,2535.0,2534.9,0.00591914]
[1748892937288,2.21078553,2535.0,2534.9,0.00591914]
[1748892937887,1.2417,2535.0,2534.9,0.79453914]
[1748892938087,3.58626425,2535.0,2534.9,4.72453914]
[1748892938683,0.5522762,2535.2,2534.9,7.14371914]
[1748892938885,0.5522762,2535.2,2535.1,0.78856]
[1748892939081,0.73263332,2535.2,2535.1,0.78856]
[1748892939878,0.5522762,2535.2,2535.1,0.78856]
[1748892940585,0.73190721,2535.2,2535.1,0.78856]
[1748892940787,0.5522762,2535.2,2535.1,0.78856]
[1748892941086,2.34456425,2535.8,2535.1,6.97137]
[1748892941393,2.34456425,2535.8,2535.7,0.78837]
[1748892941593,2.34456425,2535.9,2535.8,0.78834]
[1748892941781,3.2078,2536.0,2535.9,0.78831]
[1748892942181,3.2078,2536.0,2535.7,3.929]
[1748892942386,2.34678201,2535.9,2535.8,0.78834]
[1748892943495,5.55458201,2536.0,2535.9,0.78831]
[1748892944298,3.2078,2536.0,2535.9,0.78831]
[1748892945789,0.00591914,2536.2,2536.1,0.78825]
[1748892945992,0.00591914,2536.2,2536.1,4.74825]
[1748892946189,2.34934131,2536.2,2536.1,4.74825]
[1748892947297,0.00591914,2536.2,2536.1,4.74825]
[1748892948697,0.00591914,2536.2,2535.6,1.2738]
[1748892948994,0.00591914,2536.2,2535.7,0.78836]
[1748892948995,0.78834,2535.9,2535.7,0.78836]
[1748892949299,2.34342217,2536.0,2535.8,0.78834]
[1748892949597,0.644,2535.9,2535.8,0.78834]
[1748892955192,0.644,2535.9,2535.8,4.74834]
[1748892955393,2.34008944,2536.0,2535.8,4.74834]
[1748892955394,2.34008944,2536.0,2535.9,0.78831]
[1748892956097,1.2494,2536.0,2535.9,0.78831]
[1748892956798,2.03769,2536.0,2535.9,0.78831]
[1748892957005,4.37777944,2536.0,2535.9,0.78831]
[1748892957695,3.58948944,2536.0,2535.9,0.78831]
[1748892958696,4.37776944,2536.0,2535.9,0.78831]
[1748892958904,3.58948944,2536.0,2535.9,0.78831]
[1748892959305,1.2494,2536.0,2535.9,0.78831]
[1748892959605,3.58948944,2536.0,2535.9,0.78831]
[1748892960207,7.58556944,2536.0,2535.9,0.78831]
[1748892960504,4.4572,2536.0,2535.9,0.78831]
[1748892960703,6.79728944,2536.0,2535.9,0.78831]
[1748892962400,4.4572,2536.0,2535.9,0.78831]
[1748892962605,1.2494,2536.0,2535.9,0.78831]
[1748892963806,6.79728944,2536.0,2535.9,0.78831]
[1748892964608,3.58948944,2536.0,2535.9,0.78831]
[1748892967703,1.2494,2536.0,2535.9,0.78831]
[1748892968210,2.03768,2536.0,2535.9,0.78831]
[1748892968410,1.2494,2536.0,2535.9,0.78831]
[1748892968813,2.03768,2536.0,2535.9,0.78831]
[1748892969212,2.0377,2536.0,2535.9,0.78831]
[1748892969821,0.78831,2535.9,2535.8,1.47112]
[1748892970109,1.9853,2535.9,2535.8,1.47112]
[1748892971318,5.1931,2535.9,2535.8,1.47112]
[1748892972016,5.1931,2535.9,2535.8,0.78832]
[1748892972315,1.9853,2535.9,2535.8,0.78832]
[1748892972616,5.1931,2535.9,2535.8,0.78832]
[1748892972916,1.9853,2535.9,2535.8,0.78832]
[1748892973115,5.1931,2535.9,2535.8,0.78832]
[1748892974022,4.549,2535.9,2535.8,0.78832]
[1748892974312,2.35115319,2536.0,2535.9,0.78831]
[1748892974514,3.21371914,2536.2,2536.1,0.78825]
[1748892974515,5.56487233,2536.2,2536.1,0.78825]
[1748892974716,5.56487233,2536.2,2536.1,4.70825]
[1748892975216,5.56487233,2536.2,2536.1,5.34675]
[1748892975410,2.35707233,2536.2,2536.1,9.79885]
[1748892975616,0.00591914,2536.2,2536.1,9.79885]
[1748892976015,2.35602348,2536.2,2536.1,9.79885]
[1748892976210,1.07999348,2536.3,2536.1,14.0106]
[1748892976411,3.89354122,2536.8,2536.5,0.78812]
[1748892976721,3.12011925,2536.9,2536.8,0.78803]
[1748892977418,7.59471925,2537.0,2536.9,0.788]
[1748892977619,1.2668,2537.0,2536.9,0.788]
[1748892977817,4.4746,2537.0,2536.9,0.788]
[1748892978514,1.2668,2537.0,2536.9,0.788]
[1748892978822,4.4746,2537.0,2536.8,0.78801]
[1748892979118,4.4746,2537.0,2536.9,0.788]
[1748892979310,5.26257,2537.0,2536.8,0.78801]
[1748892979512,5.26257,2537.0,2536.6,5.82671914]
[1748892979513,4.4746,2537.0,2536.6,5.37048914]
[1748892979717,3.2078,2536.7,2536.6,5.37048914]
[1748892979918,5.26259,2537.0,2536.6,4.58241914]
[1748892980516,4.4746,2537.0,2536.9,0.788]
[1748892980816,4.4746,2537.0,2536.8,0.78801]
[1748892981021,5.26257,2537.0,2536.7,0.78804]
[1748892981717,0.78801,2536.9,2536.7,0.78804]
[1748892981919,1.3678,2536.8,2536.7,0.78804]
[1748892982621,2.15584,2536.8,2536.6,5.37049914]
[1748892982823,3.2078,2536.7,2536.6,5.37049914]
[1748892983019,1.3678,2536.7,2536.6,5.37049914]
[1748892986425,4.5756,2536.7,2536.6,5.37049914]
[1748892986820,1.3678,2536.7,2536.6,5.37049914]
[1748892987019,4.5756,2536.7,2536.6,5.37049914]
[1748892990129,1.3678,2536.7,2536.6,5.37049914]
[1748892992330,2.15586,2536.7,2536.6,0.00591914]
[1748892992623,4.5756,2536.7,2536.6,0.79400914]
[1748892993226,1.3678,2536.7,2536.6,0.79400914]
[1748892994426,0.6257,2536.8,2536.7,0.78806]
[1748892994628,1.2928,2536.9,2536.8,0.78803]
[1748892994829,2.08081,2536.9,2536.7,1.44065]
[1748892995124,2.08081,2536.9,2536.7,4.44065]
[1748892995530,3.99583,2536.8,2536.7,3.6526]
[1748892995725,5.94593,2536.8,2536.7,3.0]
[1748892996227,2.73813,2536.8,2536.7,3.0]
[1748892996424,5.07949356,2536.8,2536.7,3.0]
[1748892996623,8.28729356,2536.8,2536.7,3.0]
[1748892997328,8.28729356,2536.8,2536.7,3.78806]
[1748892997531,8.28729356,2536.8,2536.7,3.0]
[1748892998727,8.28729356,2536.8,2536.7,3.78806]
[1748892999030,8.28729356,2536.8,2536.7,3.0]
[1748892999737,10.94593,2536.8,2536.7,3.0]
[1748892999933,1.97027,2536.6,2535.9,0.6552]
[1748893000129,0.78822,2536.2,2536.1,0.78824]
[1748893000328,3.99602,2536.2,2536.1,0.78824]
[1748893000534,6.3389267,2536.2,2536.1,0.78824]
[1748893000728,7.6726267,2536.2,2536.1,0.78824]
[1748893001132,0.78825,2536.1,2536.0,4.70725]
[1748893001335,2.12195,2536.1,2536.0,3.919]
[1748893001538,4.4648567,2536.1,2536.0,4.70728]
[1748893001735,4.4648567,2536.1,2536.0,3.919]
[1748893001936,4.4648567,2536.1,2536.0,4.70728]
[1748893002228,4.4648567,2536.1,2536.0,3.919]
[1748893003234,4.4648567,2536.1,2536.0,4.70728]
[1748893003726,4.4648567,2536.1,2536.0,3.919]
[1748893004232,2.12195,2536.1,2536.0,4.70728]
[1748893004632,2.12195,2536.1,2536.0,3.919]
[1748893004836,3.05314389,2536.1,2536.0,3.919]
[1748893005143,0.93119389,2536.1,2536.0,5.36198]
[1748893005336,3.27268467,2536.1,2536.0,5.36198]
[1748893005542,0.93119389,2536.1,2536.0,5.36198]
[1748893005739,0.93119389,2536.1,2536.0,6.63498]
[1748893006439,0.93119389,2536.1,2536.0,9.63498]
[1748893009447,2.34149078,2536.4,2536.3,0.78818]
[1748893009740,3.27249838,2536.4,2536.3,0.78818]
[1748893009940,0.9310076,2536.4,2536.3,0.78818]
[1748893010643,3.27249838,2536.4,2536.3,0.78818]
[1748893010846,0.9310076,2536.4,2536.3,0.78818]
[1748893012042,3.27249838,2536.4,2536.3,0.78818]
[1748893013240,2.34149078,2536.4,2536.3,0.78818]
[1748893013541,3.27276488,2536.4,2536.3,0.78818]
[1748893017243,3.27386599,2536.4,2536.3,0.78818]
[1748893018049,0.93237521,2536.4,2536.3,2.10738]
[1748893018943,3.27386599,2536.4,2536.3,2.10738]
[1748893019448,3.27386599,2536.4,2536.3,0.78818]
[1748893019746,0.93237521,2536.4,2536.3,0.78818]
[1748893019949,2.28407521,2536.4,2536.3,4.69718]
[1748893020742,6.28002521,2536.4,2536.3,3.909]
[1748893020941,5.34765,2536.4,2536.3,3.909]
[1748893021142,0.78825,2536.1,2536.0,3.0]
[1748893021338,3.99605,2536.1,2536.0,3.0]
[1748893021944,5.31295,2536.1,2536.0,3.0]
[1748893022941,5.31295,2536.1,2536.0,3.78828]
[1748893024048,6.2451844,2536.1,2536.0,3.78828]
[1748893024852,5.4569344,2536.1,2536.0,3.78828]
[1748893025242,2.2491344,2536.1,2536.0,3.78828]
[1748893025458,2.2491344,2536.1,2536.0,4.43368]
[1748893025750,0.9322344,2536.1,2536.0,4.43368]
[1748893026152,1.86471734,2536.1,2536.0,4.43368]
[1748893026651,1.86471734,2536.1,2536.0,5.76358]
[1748893027544,1.86471734,2536.1,2536.0,2.76358]
[1748893027740,1.86471734,2536.1,2536.0,1.43368]
[1748893027944,2.65296734,2536.1,2536.0,3.6454]
[1748893028146,2.65296734,2536.1,2536.0,3.0]
[1748893028347,5.86076734,2536.1,2536.0,3.0]
[1748893031054,1.86471734,2536.1,2536.0,3.78828]
[1748893031352,2.65296734,2536.1,2536.0,3.78828]
[1748893031553,3.92436734,2536.1,2536.0,3.78828]
[1748893031753,3.13611734,2536.1,2536.0,3.78828]
[1748893031957,1.86471734,2536.1,2536.0,4.42878]
[1748893034057,1.86471734,2536.1,2536.0,5.75998]
[1748893034761,1.86471734,2536.1,2536.0,4.42878]
[1748893035860,1.86471734,2536.1,2536.0,3.0]
[1748893036053,5.07251734,2536.1,2536.0,6.91]
[1748893036253,5.07251734,2536.1,2536.0,7.69828]
[1748893036459,6.40781734,2536.1,2536.0,7.69828]
[1748893038859,3.20001734,2536.1,2536.0,7.69828]
[1748893039557,3.98826734,2536.1,2536.0,6.91]
[1748893039748,7.87056734,2536.1,2536.0,6.91]
[1748893040358,7.87056734,2536.1,2536.0,7.69828]
[1748893041659,7.87056734,2536.1,2536.0,6.91]
[1748893041860,0.78828,2536.0,2535.9,0.00591914]
[1748893042160,20.97588,2536.0,2535.9,0.00591914]
[1748893042361,25.97588,2536.0,2535.9,0.00591914]
[1748893044361,20.97588,2536.0,2535.9,0.00591914]
[1748893044562,25.97588,2536.0,2535.9,0.00591914]
[1748893044970,25.1876,2536.0,2535.4,3.91]
[1748893045160,0.78846,2535.4,2535.3,0.78846]
[1748893045365,3.99626,2535.4,2535.3,0.78846]
[1748893046061,8.2078,2535.4,2535.1,0.00591914]
[1748893046261,0.78853,2535.2,2535.1,0.00591914]
[1748893046760,2.09713,2535.2,2535.1,0.00591914]
[1748893048763,2.09713,2535.2,2535.1,0.79447914]
[1748893048965,2.09713,2535.2,2535.1,0.00591914]
[1748893050260,3.2078,2535.3,2535.1,0.00591914]
[1748893050465,0.00591914,2535.6,2535.5,0.78843]
[1748893050857,0.79432914,2535.6,2535.4,0.78844]
[1748893051059,3.99625,2535.5,2535.3,3.37058]
[1748893051366,3.99625,2535.5,2535.4,0.78846]
[1748893051664,5.29755,2535.5,2535.4,0.78846]
[1748893052969,4.5091,2535.5,2535.4,0.78846]
[1748893053167,5.29753,2535.5,2535.4,0.78846]
[1748893053367,4.5091,2535.5,2535.4,0.78846]
[1748893053570,0.00591914,2535.6,2535.5,0.78843]
[1748893053870,0.00591914,2535.6,2535.5,4.69943]
[1748893054367,0.00591914,2535.6,2535.5,7.69943]
[1748893057868,0.00591914,2535.6,2535.5,3.78843]
[1748893058869,0.00591914,2535.6,2535.5,5.12273]
[1748893059561,0.00591914,2535.6,2535.5,10.12273]
[1748893060263,9.14e-06,2535.6,2535.5,13.33053]
[1748893060465,9.14e-06,2535.6,2535.5,13.63990892]
[1748893069267,1.86471734,2536.1,2536.0,0.78828]
[1748893069475,1.86471734,2536.1,2536.0,7.90808]
[1748893069876,1.86471734,2536.1,2536.0,9.17608]
[1748893072979,1.86471734,2536.1,2536.0,12.17608]
[1748893073180,1.2463,2536.6,2536.5,0.78812]
[1748893074670,0.00591914,2536.8,2536.7,0.78806]
[1748893074879,1.28211914,2536.8,2536.7,0.78806]
[1748893080587,2.07014914,2536.8,2536.7,0.78806]
[1748893080779,1.28211914,2536.8,2536.6,4.70008]
[1748893081083,0.00591914,2536.8,2536.7,0.78806]
[1748893086083,0.79394914,2536.8,2536.7,0.78806]
[1748893086282,0.00591914,2536.8,2536.7,0.78806]
[1748893086880,0.79394914,2536.8,2536.7,0.78806]
[1748893087085,0.79396914,2536.8,2536.7,0.78806]
[1748893087281,0.00591914,2536.8,2536.5,0.00591914]
[1748893087480,0.78809,2536.6,2536.5,4.70500914]
[1748893088380,0.78809,2536.7,2536.6,0.78806]
[1748893088581,0.79396914,2536.8,2536.7,0.78806]
[1748893089387,0.78809,2536.7,2536.6,0.78808]
[1748893089577,3.99589,2536.7,2536.6,0.78808]
[1748893092989,0.78809,2536.7,2536.6,0.78808]
[1748893093382,3.99589,2536.7,2536.6,0.78808]
[1748893093582,0.78809,2536.7,2536.6,0.78808]
[1748893094482,3.99589,2536.7,2536.6,0.78808]
[1748893095382,0.78809,2536.6,2536.5,0.79401914]
[1748893095583,0.78809,2536.6,2536.5,0.00591914]
[1748893096284,2.12509,2536.6,2536.5,0.00591914]
[1748893096988,30.72509,2536.6,2536.5,0.79403914]
[1748893097790,30.72509,2536.6,2536.5,0.00591914]
[1748893099084,34.937,2536.6,2535.7,7.1168]
[1748893099290,0.78834,2535.8,2535.7,0.78836]
[1748893099486,0.7883,2536.0,2535.9,0.78829]
[1748893099687,2.0043,2536.0,2535.9,0.78831]
[1748893099983,2.0043,2536.0,2535.6,3.909]
[1748893100183,2.11402,2535.9,2535.8,0.78834]
[1748893100388,0.78835,2535.8,2535.7,0.78835]
[1748893100689,2.11404,2535.8,2535.7,0.78835]
[1748893100883,2.11406,2535.8,2535.7,0.78837]
[1748893102591,1.3257,2535.8,2535.7,0.78837]
[1748893102785,3.2078,2536.1,2536.0,0.78828]
[1748893103381,3.2078,2536.1,2536.0,1.41068]
[1748893103680,3.99605,2536.1,2536.0,1.41068]
[1748893103880,3.2078,2536.1,2536.0,1.41068]
[1748893105493,3.99605,2536.1,2536.0,1.41068]
[1748893106095,3.2078,2536.1,2536.0,1.41068]
[1748893110196,3.2078,2536.2,2536.1,0.78825]
[1748893110492,3.99602,2536.2,2536.1,0.78825]
[1748893110696,3.2078,2536.2,2536.1,0.78825]
[1748893111090,3.99602,2536.2,2536.1,0.78825]
[1748893112296,3.2078,2536.2,2536.1,0.78825]
[1748893113499,3.99602,2536.2,2536.1,0.78825]
[1748893113701,0.78825,2536.1,2536.0,4.5314]
[1748893113900,0.78825,2536.1,2535.9,0.6359]
[1748893113901,1.9417,2536.1,2535.7,0.6534]
[1748893114201,3.2078,2535.9,2535.7,0.6534]
[1748893114401,3.99614,2535.9,2535.8,0.78834]
[1748893114695,3.2078,2535.9,2535.7,1.44175]
[1748893114901,1.2546,2535.8,2535.6,0.78839]
[1748893115400,2.04296,2535.8,2535.6,0.78839]
[1748893115703,1.2546,2535.7,2535.6,0.78839]
[1748893119104,2.04297,2535.7,2535.6,0.78839]
[1748893119502,1.2546,2535.7,2535.6,0.78839]
[1748893120204,2.04297,2535.7,2535.6,0.78839]
[1748893121501,1.2546,2535.7,2535.6,0.78839]
[1748893121704,2.04297,2535.7,2535.6,0.78839]
[1748893123709,1.2546,2535.7,2535.6,0.78839]
[1748893124403,2.04297,2535.7,2535.6,0.78839]
[1748893125205,0.7884,2535.6,2535.5,0.63251914]
[1748893125504,3.9962,2535.6,2535.5,0.00591914]
[1748893125708,4.6793,2535.6,2535.5,0.00591914]
[1748893126810,33.2793,2535.6,2535.5,0.00591914]
[1748893127011,33.929,2535.6,2535.5,0.00591914]
[1748893127509,0.78849,2535.3,2535.2,3.2078]
[1748893127710,0.78853,2535.2,2535.1,0.6756]
[1748893127903,2.70703,2535.2,2535.1,0.6756]
[1748893128303,2.70703,2535.2,2535.1,1.46416]
[1748893129813,0.78856,2535.1,2535.0,3.91]
[1748893130008,2.06806,2535.1,2535.0,3.91]
[1748893130812,2.06806,2535.1,2535.0,4.69859]
[1748893132114,1.2795,2535.1,2535.0,4.69859]
[1748893132307,1.2795,2535.1,2535.0,0.78859]
[1748893132508,2.06806,2535.1,2535.0,0.78859]
[1748893133517,1.2795,2535.1,2535.0,0.78859]
[1748893133718,0.00591914,2535.4,2535.3,0.78849]
[1748893134217,0.00591914,2535.4,2535.3,7.69749]
[1748893134718,0.00591914,2535.4,2535.3,8.99199]
[1748893135018,0.79437914,2535.4,2535.3,8.99199]
[1748893135714,0.00591914,2535.4,2535.3,8.99199]
[1748893145622,1.28141914,2535.4,2535.3,8.99199]
[1748893146629,2.06987914,2535.4,2535.3,8.99199]
[1748893146827,2.06987914,2535.4,2535.3,5.08299]
[1748893147026,2.06987914,2535.4,2535.3,8.99199]
[1748893147518,1.28141914,2535.4,2535.3,8.99199]
[1748893147723,2.06987914,2535.4,2535.3,0.78849]
[1748893147923,2.06987914,2535.4,2535.3,4.69749]
[1748893148325,2.06987914,2535.4,2535.3,0.78849]
[1748893148729,0.78852,2535.3,2535.2,0.7885]
[1748893148930,2.81502,2535.3,2535.2,4.6975]
[1748893149626,2.0265,2535.3,2535.2,4.6975]
[1748893150129,2.0265,2535.3,2535.2,0.7885]
[1748893150332,2.81499,2535.3,2535.2,4.6975]
[1748893150828,2.0265,2535.3,2535.2,4.6975]
[1748893151027,2.81499,2535.3,2535.2,4.6975]
[1748893151230,2.0265,2535.3,2535.2,4.6975]
[1748893151530,2.81499,2535.3,2535.2,4.6975]
[1748893152328,2.0265,2535.3,2535.2,0.7885]
[1748893152533,2.0265,2535.3,2535.2,4.6975]
[1748893153031,2.81499,2535.3,2535.2,4.6975]
[1748893153228,2.81499,2535.3,2535.2,0.7885]
[1748893153429,2.0265,2535.3,2535.2,4.6975]
[1748893153934,0.00591914,2535.4,2535.3,0.78849]
[1748893154328,0.00591914,2535.4,2535.3,2.04659]
[1748893154534,0.00591914,2535.4,2535.3,3.78849]
[1748893155236,2.10007914,2535.4,2535.3,3.0]
[1748893156137,2.10007914,2535.4,2535.3,3.78849]
[1748893159236,1.31161914,2535.4,2535.3,3.78849]
[1748893159440,0.00591914,2535.4,2535.3,3.78849]
[1748893159637,0.00591914,2535.4,2535.3,5.13549]
[1748893160637,0.00591914,2535.4,2535.3,9.04149]
[1748893162239,1.2653,2536.1,2536.0,0.78828]
[1748893162536,1.2653,2536.1,2536.0,4.69428]
[1748893163129,2.05355,2536.1,2536.0,4.69428]
[1748893163335,1.2653,2536.1,2536.0,4.69428]
[1748893163736,2.05355,2536.1,2536.0,4.69428]
[1748893164541,1.2653,2536.1,2535.7,3.2078]
[1748893164743,0.78834,2535.8,2535.7,3.906]
[1748893165135,0.78834,2535.8,2535.7,4.69437]
[1748893165341,2.04454,2535.8,2535.7,4.69437]
[1748893165838,2.04454,2535.8,2535.7,0.78837]
[1748893166941,0.78837,2535.7,2535.6,4.69439]
[1748893167144,2.10157,2535.7,2535.6,4.69439]
[1748893167342,2.10157,2535.7,2535.6,0.78839]
[1748893167542,1.3132,2535.7,2535.6,0.78839]
[1748893168033,2.10157,2535.7,2535.6,0.78839]
[1748893168646,1.3132,2535.7,2535.4,1.2421]
[1748893168848,0.78843,2535.5,2535.4,5.31695]
[1748893169143,0.78843,2535.5,2535.4,4.69445]
[1748893169344,2.81823,2535.5,2535.4,0.78845]
[1748893169947,0.78846,2535.4,2535.3,4.69447]
[1748893170245,1.3627,2535.4,2535.3,4.69447]
[1748893170445,2.15116,2535.4,2535.3,3.906]
[1748893170745,2.15116,2535.4,2535.0,1.2538]
[1748893170746,0.78856,2535.1,2535.0,4.69459]
[1748893171135,0.78854,2535.2,2535.1,0.78854]
[1748893171445,2.1512,2535.3,2535.2,0.78852]
[1748893171950,0.78854,2535.2,2535.1,0.78855]
[1748893172142,2.15124,2535.2,2535.1,0.78855]
[1748893172343,3.70918524,2535.2,2534.9,0.00591914]
[1748893172538,3.70918524,2535.2,2534.9,3.91191914]
[1748893172539,0.78859,2535.0,2534.9,3.91191914]
[1748893172745,3.13507524,2535.0,2534.9,0.00591914]
[1748893172945,5.30579,2535.0,2534.9,0.00591914]
[1748893173450,6.24152052,2535.0,2534.9,0.00591914]
[1748893173637,6.24069899,2535.0,2534.9,0.00591914]
[1748893176248,4.93129899,2535.0,2534.9,0.00591914]
[1748893176438,6.30149899,2535.0,2534.9,0.00591914]
[1748893176644,8.64539142,2535.0,2534.9,0.00591914]
[1748893177146,6.30149899,2535.0,2534.9,0.00591914]
[1748893177552,0.78884,2534.2,2534.1,3.2078]
[1748893177848,6.33953005,2534.2,2534.1,0.78887]
[1748893178051,4.06663904,2534.2,2534.1,3.78887]
[1748893178653,3.27778904,2534.2,2534.1,3.78887]
[1748893178847,0.93490899,2534.2,2534.1,3.78887]
[1748893179341,2.29840899,2534.2,2534.1,3.78887]
[1748893179547,6.29504899,2534.2,2534.1,3.0]
[1748893180348,6.29504899,2534.2,2534.1,3.78887]
[1748893181260,6.29180261,2534.2,2534.1,3.78887]
[1748893183256,5.50296261,2534.2,2534.1,3.78887]
[1748893183454,0.93166261,2534.2,2534.1,3.78887]
[1748893183755,0.00591914,2534.4,2534.3,0.78881]
[1748893183958,0.93644776,2534.4,2534.3,0.78881]
[1748893184156,0.93644776,2534.4,2534.3,2.03361]
[1748893184958,0.93718124,2534.4,2534.3,2.03361]
[1748893188864,0.93714423,2534.4,2534.3,2.03361]
[1748893192565,0.93745989,2534.4,2534.3,2.03361]
[1748893196460,0.93901137,2534.4,2534.3,2.03361]
[1748893197064,0.93901137,2534.4,2534.3,5.03361]
[1748893202275,3.69378005,2535.0,2534.9,0.78862]
[1748893202771,4.48237005,2535.0,2534.9,0.78862]
[1748893203068,3.69378005,2535.0,2534.9,0.78862]
[1748893205065,2.34288005,2535.0,2534.9,0.78862]
[1748893205267,5.55068005,2535.1,2535.0,0.78859]
[1748893205463,3.2078,2535.1,2535.0,0.78859]